Cogmind - Beta 10.2 @@@ ROGUE MODE // 2020.12.15 @ 17:00:48 // Winter2019/RPGLIKE Player: Hermelin Result: Self-destructed Performance ------------- Evolutions (3) 1500 Regions Visited (7) 1400 Robots Destroyed (104) 520 Value Destroyed (3177) 3177 Prototype IDs (48) 960 Alien Tech Used (0) 0 Bonus (962) 962 TOTAL SCORE: 8519 Bonus ------- High Alert Combat Kills 202 Entered Garrisons 200 Used RIF Installer 500 Aligned with FarCom 300 Friendly Fire -240 Cogmind --------- Core Integrity 903/1000 Matter 400/400 Energy 330/330 System Corruption 0% Temperature Cool (0) Movement Hovering (72) Location -7/Factory Parts ------- > --- POWER (2) -------- Cooled Ion Engine Light Neutrino Core > --- PROPULSION (3) --- Combat Airjet Combat Airjet Combat Antigrav System > --- UTILITY (6) ------ Advanced Signal Interpreter Advanced Terrain Scanner Experimental Targeting Computer Advanced Core Analyzer 8R-AWN's Armor/EX > --- WEAPON (3) ------- 8R-AWN's Boregun 8R-AWN's Boregun Axe > --- INVENTORY (4) ---- Advanced Weapon Cycler Improved Shield Generator Relay Coupler [NC] (54) System Purifier Peak State ------------ > --- POWER ------------ Cooled Ion Engine Light Neutrino Core > --- PROPULSION ------- Combat Airjet Combat Airjet Combat Antigrav System > --- UTILITY ---------- Advanced Signal Interpreter Advanced Terrain Scanner Experimental Targeting Computer Advanced Core Analyzer 8R-AWN's Armor/EX > --- WEAPON ----------- 8R-AWN's Boregun 8R-AWN's Boregun Axe > --- INVENTORY -------- Advanced Weapon Cycler Improved Shield Generator Relay Coupler [NC] System Purifier [Rating: 93] Favorites ----------- Power Light Neutrino Core Engine Ion Engine Power Core Light Neutrino Core Propulsion Light Treads Treads Light Treads Leg Aluminum Leg Wheel Wheel Hover Unit Combat Airjet Utility Experimental Targeting Computer Device Advanced Terrain Scanner Processor Experimental Targeting Computer Hackware Hacking Suite Protection Light Armor Plating Weapon 8R-AWN's Boregun Energy Gun EM Pulse Gun Ballistic Gun 8R-AWN's Boregun Slashing Weapon Axe Special Melee Weapon Datajack Build | -11 -10 -10 -10 -9 -8 -8 -7 ------- Run | Scr Mat Min Exi Min Mat Gar Fac Slots Evolved 10 | 3 1 1 . . 4 1 . Power 1 | . . . . . 1 . . Propulsion 2 | 1 . . . . 1 . . Utility 5 | 1 1 . . . 2 1 . Weapon 2 | 1 . 1 . . . . . Parts Attached 68 | 9 5 1 20 1 26 5 1 Power 6 | 1 . . 1 . 3 . 1 Engine 3 | 1 . . . . 1 . 1 Core 3 | . . . 1 . 2 . . Reactor . | . . . . . . . . Propulsion 22 | 4 . . 4 . 11 3 . Treads 10 | 2 . . 3 . 5 . . Leg 2 | 2 . . . . . . . Wheel 2 | . . . . . 2 . . Hover 8 | . . . 1 . 4 3 . Flight . | . . . . . . . . Utility 18 | 2 3 . 4 . 7 2 . Device 8 | 1 . . 2 . 4 1 . Storage . | . . . . . . . . Processor 5 | 1 1 . 2 . 1 . . Hackware 1 | . 1 . . . . . . Protection 4 | . 1 . . . 2 1 . Artifact . | . . . . . . . . Weapon 22 | 2 2 1 11 1 5 . . Energy Gun 9 | 1 . 1 5 1 1 . . Energy Cannon . | . . . . . . . . Ballistic Gun 9 | 1 2 . 4 . 2 . . Ballistic Cannon . | . . . . . . . . Launcher . | . . . . . . . . Special Weapon . | . . . . . . . . Impact Weapon . | . . . . . . . . Slashing Weapon 2 | . . . . . 2 . . Piercing Weapon . | . . . . . . . . Special Melee Weapon 2 | . . . 2 . . . . Unidentified Prototypes 3 | . . . . . 3 . . Parts Lost 1 | . . . 1 . . . . Power . | . . . . . . . . Propulsion . | . . . . . . . . Utility 1 | . . . 1 . . . . Weapon . | . . . . . . . . Highest Loss Streak 1 | . . . 1 . . . . Average Slot Usage (%) 94 | . 100 100 96 88 95 92 92 Engine 7 | . 13 11 8 . 2 7 7 Core 5 | . . . 2 11 8 7 7 Treads 11 | . 26 22 20 . 10 . . Hover 8 | . . . . 11 6 20 21 Device 10 | . 13 11 13 11 8 6 7 Processor 16 | . 3 11 11 22 24 21 21 Protection 7 | . 12 11 7 . 6 7 7 Energy Gun 5 | . 10 10 10 11 2 . . Ballistic Gun 16 | . 16 22 17 22 16 14 14 Slashing Weapon 3 | . . . . . 5 7 7 Naked Turns . | . . . . . . . . Heaviest Build 56 | 10 15 17 23 24 41 55 56 Greatest Support 79 | 45 45 45 45 35 61 79 79 Greatest Overweight (x) 6 | . . . . . 4 6 . Average Overweight (x) . | . . . . . . 2 . Largest Inventory Capacity 4 | 2 3 3 3 3 4 4 4 Average Capacity 3 | 1 2 3 3 3 3 4 4 Most Carried 4 | 1 3 3 3 3 4 4 4 Average Carried 3 | . 2 2 2 3 3 3 4 Final Capacity 4 | 2 3 3 3 3 4 4 4 Final Carried 4 | 1 3 3 3 3 4 4 4 Class Distribution -------------------- 27% | Mutant 23% | Scavenger-Assassin 13% | Scavenger-Mutant 12% | Scavenger-Scout 12% | Scavenger-Gunner 8% | Gunner Dominant Class ---------------- Mutant | -10/Materials Gunner | -10/Mines Mutant | -10/Exiles Scavenger-Gunner | -9/Mines Scavenger-Mutant | -8/Materials Scavenger-Assassin | -8/Garrison Scavenger-Scout | -7/Factory Resources | -11 -10 -10 -10 -9 -8 -8 -7 ----------- Run | Scr Mat Min Exi Min Mat Gar Fac Matter Collected 3161 | 326 179 42 516 70 1318 580 130 Remotely . | . . . . . . . . Salvage Created 4904 | 202 537 139 288 76 2206 1118 338 Parts 307 | 12 40 6 42 7 130 49 21 Haulers Intercepted 8 | . 2 . . . 4 . 2 Recyclers Shooed . | . . . . . . . . Parts Field Recycled . | . . . . . . . . Retrieved Matter . | . . . . . . . . Parts Self-Destructed . | . . . . . . . . Prevented . | . . . . . . . . Kills | -11 -10 -10 -10 -9 -8 -8 -7 ------- Run | Scr Mat Min Exi Min Mat Gar Fac Combat Hostiles Destroyed 68 | . 15 2 1 3 34 11 2 Melee 1 | . . . . . . 1 . Guns 65 | . 14 2 1 3 33 10 2 AOE 2 | . 1 . . . 1 . . Classes Destroyed 15 | 3 4 . 2 . 5 1 . Worker 7 | 1 1 . . . 4 . 1 Tunneler 4 | 4 . . . . . . . Hauler 8 | . 2 . . . 4 . 2 Recycler 5 | 1 . . . . 4 . . Carrier 1 | . . . . . . 1 . Operator 4 | . 3 . . . . . 1 Turret 1 | . . . 1 . . . . Watcher 2 | . . . . . 2 . . Swarmer 15 | . 6 . . 3 6 . . Grunt 30 | . 9 2 . . 16 2 1 Brawler 1 | . . . . . 1 . . Duelist 3 | . . . . . 1 2 . Sentry 15 | . . . . . 8 6 1 Hunter 3 | . . . . . 2 1 . Zionite 2 | . . . 1 . 1 . . Thug 1 | . . . . . 1 . . Best Kill Streak 6 | 4 5 2 2 3 6 4 3 Combat Bots Only 5 | . 5 2 1 3 5 3 1 Max Kills in Single Turn 4 | 1 2 1 1 1 4 1 1 Gunslinging . | . . . . . . . . Exploded 1 | . 1 . . . 1 . . Melee 1 | . . . . . . 1 . Uniques/NPCs Destroyed 4 | . . . 4 . . . . EX-HEX (-10/Exiles) 8R-AWN (-10/Exiles) EX-BIN (-10/Exiles) EX-DEC (-10/Exiles) Combat | -11 -10 -10 -10 -9 -8 -8 -7 -------- Run | Scr Mat Min Exi Min Mat Gar Fac Damage Taken 3336 | . 424 35 1327 53 1144 185 168 Core 2435 | . 287 27 1004 41 854 125 97 Absorbed by Shields . | . . . . . . . . Redirected to Core 2080 | . 234 27 902 35 699 125 58 Core Remaining (%) 75 | 100 . . . 26 . 100 . Volleys Fired 292 | 12 38 4 87 5 97 39 10 Largest 3 | 2 2 2 3 3 3 2 2 Hottest 105 | 60 60 46 100 105 105 60 60 Shots Fired 607 | 24 76 8 183 15 203 78 20 Gun 607 | 24 76 8 183 15 203 78 20 Cannon . | . . . . . . . . Launcher . | . . . . . . . . Special . | . . . . . . . . Kinetic 412 | 12 41 8 73 10 170 78 20 Thermal 53 | . . . 53 . . . . Explosive . | . . . . . . . . Electromagnetic 142 | 12 35 . 57 5 33 . . Robot Hit Streak 31 | 5 13 19 31 4 18 18 6 Robot Miss Streak 4 | 3 2 . 2 2 4 1 1 Penetration Max 2 | . . . . . 2 1 . Secondary Targets 12 | . 3 . . 1 8 . . Max Gunslinging Chain 1 | . 1 . . 1 1 . . Autonomous 54 | . . . 54 . . . . Shots Hit Robots 472 | 12 55 7 171 9 146 58 14 Core Hits 221 | 7 29 3 40 4 96 34 8 Critical Hits 130 | . . . 7 . 78 41 4 Critical Kills 37 | . . . 1 . 19 14 3 Critical Parts Destroyed 69 | . . . 4 . 47 17 1 Melee Attacks 20 | . . . 5 . 5 8 2 Impact . | . . . . . . . . Slashing 15 | . . . . . 5 8 2 Piercing . | . . . . . . . . Sneak Attacks 8 | . . . 5 . 3 . . Combat Hostiles . | . . . . . . . . Follow-up Attacks . | . . . . . . . . Damage Inflicted 7781 | 169 750 108 1614 91 3704 1073 272 Guns 6466 | 169 716 108 1419 91 2744 1000 219 Cannons . | . . . . . . . . Explosions 795 | . 34 . 195 . 566 . . Melee 520 | . . . . . 394 73 53 Ramming . | . . . . . . . . Kinetic 4984 | 39 307 108 961 43 2307 1000 219 Thermal 356 | . 34 . 322 . . . . Explosive 566 | . . . . . 566 . . Electromagnetic 1355 | 130 409 . 331 48 437 . . Impact . | . . . . . . . . Slashing 520 | . . . . . 394 73 53 Piercing . | . . . . . . . . Highest Corruption . | . . . . . . . . Average Corruption . | . . . . . . . . Corruption Purged . | . . . . . . . . Overload Shots . | . . . . . . . . Overflow Damage 147 | . . . 3 . 134 10 . Projectiles . | . . . . . . . . Explosions 137 | . . . 3 . 134 . . Melee 10 | . . . . . . 10 . Knockbacks . | . . . . . . . . Impact . | . . . . . . . . Kinetic . | . . . . . . . . Secondary . | . . . . . . . . Self-Inflicted Damage 37 | . 37 . . . . . . Shots 1 | . 1 . . . . . . Rammed . | . . . . . . . . Targets Rammed . | . . . . . . . . Kicked . | . . . . . . . . Crushed . | . . . . . . . . Highest Temperature 319 | . 39 9 171 268 319 5 11 Average Temperature 63 | . 16 9 66 142 62 3 6 Received Heat Transfer 741 | . 135 18 . . 459 54 75 Siege Activations . | . . . . . . . . Robots Corrupted 1 | . . . 1 . . . . Combat Hostiles . | . . . . . . . . Parts Fried 2 | . 1 . 1 . . . . Impact Corruptions . | . . . . . . . . Robots Melted . | . . . . . . . . Combat Hostiles . | . . . . . . . . Parts Melted 1 | . . . . . 1 . . Heat Transferred 659 | . . . 659 . . . . Parts Sabotaged . | . . . . . . . . Parts Stolen . | . . . . . . . . Parts Stripped . | . . . . . . . . Power Chain Reactions 4 | . 1 . 3 . . . . Missiles Intercepted . | . . . . . . . . Alert | -11 -10 -10 -10 -9 -8 -8 -7 ------- Run | Scr Mat Min Exi Min Mat Gar Fac Peak Influence 707 | 30 342 172 . 75 530 707 497 Initial 371 | . 19 122 . . . 187 371 Average 386 | 14 223 141 . 36 295 645 452 Maximum Alert Level 3 | . 1 . . . 2 3 2 Low Security (%) 27 | 100 35 100 . 100 15 1 . Level 1 31 | . 64 . . . 68 12 21 Level 2 9 | . . . . . 16 7 78 Level 3 31 | . . . . . . 78 . Level 4 . | . . . . . . . . Level 5 . | . . . . . . . . High Security . | . . . . . . . . Max Security . | . . . . . . . . Squads Dispatched 11 | . 3 . . . 6 . 2 Investigation 8 | . 2 . . . 6 . . Extermination . | . . . . . . . . Reinforcement 3 | . 1 . . . . . 2 Assault . | . . . . . . . . Garrison . | . . . . . . . . Intercept . | . . . . . . . . Construction Impeded . | . . . . . . . . Haulers Reinforced 1 | . . . . . . . 1 Stealth | -11 -10 -10 -10 -9 -8 -8 -7 --------- Run | Scr Mat Min Exi Min Mat Gar Fac Distress Signals 10 | . 3 . . . 7 . . Communications Jammed . | . . . . . . . . Distress Signals . | . . . . . . . . Times Spotted 127 | . 31 2 25 3 51 12 3 Peak Tracking Total 8 | . 6 2 8 3 7 4 1 Tactical Retreats 15 | . 2 . 7 . 5 1 . Traps | -11 -10 -10 -10 -9 -8 -8 -7 ------- Run | Scr Mat Min Exi Min Mat Gar Fac Traps Triggered 7 | . . . . . 1 6 . Indirectly . | . . . . . . . . Trap Hack Attempts . | . . . . . . . . Triggered . | . . . . . . . . Disarmed . | . . . . . . . . Reprogrammed . | . . . . . . . . Reused . | . . . . . . . . Traps Extracted . | . . . . . . . . Installed . | . . . . . . . . Triggered . | . . . . . . . . Machines | -11 -10 -10 -10 -9 -8 -8 -7 ---------- Run | Scr Mat Min Exi Min Mat Gar Fac Machines Disabled 17 | . 1 . 8 . 5 2 1 Max in Single Turn 1 | . 1 . 1 . 1 1 1 Garrison Relay 2 | . . . . . . 2 . Machines Sabotaged . | . . . . . . . . Garrisons Compromised . | . . . . . . . . Overloaded Fab Kills . | . . . . . . . . Fab Network Shutdowns . | . . . . . . . . Hacking | -11 -10 -10 -10 -9 -8 -8 -7 --------- Run | Scr Mat Min Exi Min Mat Gar Fac Machines Accessed 28 | . 9 . 2 1 14 . 2 Terminals 18 | . 7 . . 1 9 . 1 Fabricators . | . . . . . . . . Repair Stations 1 | . . . . . 1 . . Recycling Units 4 | . 2 . . . 2 . . Scanalyzers 2 | . . . . . 1 . 1 Garrison Access 1 | . . . . . 1 . . Total Hacks 108 | . 35 . 2 5 63 . 3 Successful 71 | . 22 . 2 2 44 . 1 Failed 35 | . 12 . . 3 18 . 2 Catastrophic 3 | . 2 . . 1 . . . Database Lockouts 2 | . 1 . . . 1 . . Manual 50 | . 17 . 1 5 25 . 2 Terminals 76 | . 31 . . 5 38 . 2 Fabricators . | . . . . . . . . Repair Stations 11 | . . . . . 11 . . Recycling Units 12 | . 4 . . . 8 . . Scanalyzers 6 | . . . . . 5 . 1 Garrison Access 1 | . . . . . 1 . . Terminal Hacks 32 | . 11 . 2 2 17 . . Record 1 | . . . 1 . . . . Part Schematic 1 | . . . . . 1 . . Robot Schematic 1 | . . . . 1 . . . Robot Analysis 2 | . 1 . . 1 . . . Prototype ID Bank 4 | . 1 . . . 3 . . Branch Access Points 2 | . 2 . . . . . . Machine Index 1 | . . . . . 1 . . Terminal Index 2 | . 1 . . . 1 . . Repair Station Index 1 | . . . . . 1 . . Alert Level 1 | . . . . . 1 . . Unreport Threat 4 | . . . . . 4 . . Locate Traps 2 | . 1 . . . 1 . . Recall Reinforcements 1 | . 1 . . . . . . Hauler Manifests 2 | . 1 . . . 1 . . Registered Components 2 | . 1 . . . 1 . . Zone Layout 4 | . 2 . . . 2 . . EX-Prototype ID Bank 1 | . . . 1 . . . . Fabricator Hacks . | . . . . . . . . Repair Station Hacks 9 | . . . . . 9 . . Scan Component 4 | . . . . . 4 . . Repair 4 | . . . . . 4 . . Refit 1 | . . . . . 1 . . Recycling Unit Hacks 5 | . 2 . . . 3 . . Report Inventory 4 | . 2 . . . 2 . . Retrieve Components 1 | . . . . . 1 . . Scanalyzer 5 | . . . . . 5 . . Insert Component 2 | . . . . . 2 . . Analyze 3 | . . . . . 3 . . Garrison Access Hacks 1 | . . . . . 1 . . Unlock Access 1 | . . . . . 1 . . Unauthorized Hacks 19 | . 9 . . . 9 . 1 Terminals 14 | . 7 . . . 6 . 1 Track 3 | . 2 . . . 1 . . Assimilate 1 | . . . . . . . 1 Botnet 9 | . 4 . . . 5 . . Operators 1 | . 1 . . . . . . Fabricators . | . . . . . . . . Repair Stations . | . . . . . . . . Recycling Units 5 | . 2 . . . 3 . . Mask 1 | . . . . . 1 . . Tunnel 4 | . 2 . . . 2 . . Scanalyzers . | . . . . . . . . Garrison Access . | . . . . . . . . Data Cores Recovered 2 | . 2 . . . . . . Used 2 | . 2 . . . . . . Hacking Detections 22 | . 8 . . 1 11 . 2 Full Trace Events 4 | . . . . 1 3 . . Feedback Events . | . . . . . . . . Feedback Blocked . | . . . . . . . . Robot Schematics Acquired 1 | . . . . 1 . . . Robots Built . | . . . . . . . . Matter . | . . . . . . . . Time . | . . . . . . . . Total Robot Build Rating . | . . . . . . . . Part Schematics Acquired 3 | . . . . . 3 . . Parts Built . | . . . . . . . . Matter . | . . . . . . . . Time . | . . . . . . . . Total Part Build Rating . | . . . . . . . . Parts Repaired 4 | . . . . . 4 . . Time 388 | . . . . . 388 . . Parts Recycled . | . . . . . . . . Recycled Matter . | . . . . . . . . Retrieved Matter . | . . . . . . . . Retrieved Components 10 | . . . . . 10 . . Parts Scanalyzed 2 | . . . . . 2 . . Part Schematics Acquired 2 | . . . . . 2 . . Parts Damaged 2 | . . . . . 2 . . Bothacking | -11 -10 -10 -10 -9 -8 -8 -7 ------------ Run | Scr Mat Min Exi Min Mat Gar Fac Used RIF Installer 1 | . . . . . . 1 . Robots Hacked 5 | . . . 5 . . . . Non-combat 3 | . . . 3 . . . . Combat 2 | . . . 2 . . . . Robot Hacks Applied 5 | . . . 5 . . . . parse_system 5 | . . . 5 . . . . Relay Couplers Released 2 | . . . . . . 2 . Machine Destruction 2 | . . . . . . 2 . Robots Rewired 1 | . . . . . 1 . . Allies Hacked . | . . . . . . . . Hacks Repelled . | . . . . . . . . Allies | -11 -10 -10 -10 -9 -8 -8 -7 -------- Run | Scr Mat Min Exi Min Mat Gar Fac Total Allies 3 | . . . . 2 1 . . Largest Group 2 | . . . . 2 2 . . Highest-Rated Group 43 | . . . . 43 43 . . Highest-Rated Ally 31 | . . . . 31 31 . . Total Orders . | . . . . . . . . Ally Attacks 17 | . . . 15 . 2 . . Total Damage 894 | . . . 852 . 42 . . Kills 8 | . . . 8 . . . . Allies Corrupted . | . . . . . . . . Allies Melted . | . . . . . . . . Turrets Deployed 3 | . . . 3 . . . . Intel | -11 -10 -10 -10 -9 -8 -8 -7 ------- Run | Scr Mat Min Exi Min Mat Gar Fac Robot Analysis Total 2 | . 1 . . 1 . . . Derelict Logs Recovered 2 | . . 1 . 1 . . . Drone Launches . | . . . . . . . . Drone Recoveries . | . . . . . . . . Exploration | -11 -10 -10 -10 -9 -8 -8 -7 ------------- Run | Scr Mat Min Exi Min Mat Gar Fac Turns Passed 9534 | 235 1064 480 2425 579 1732 2813 206 Spaces Moved 5255 | 122 541 287 1426 593 780 1274 232 Core 587 | 7 . . . . 3 577 . Treads 2514 | 107 541 287 1274 . 305 . . Legs 8 | 8 . . . . . . . Wheels 38 | . . . . . 38 . . Hover 2108 | . . . 152 593 434 697 232 Flight . | . . . . . . . . Fastest Speed 50 | 50 160 160 80 80 76 72 72 Average Speed 146 | 151 160 160 151 80 113 198 72 Slowest Speed 350 | 160 160 160 160 80 320 350 72 Overloaded Moves . | . . . . . . . . Propulsion Burnouts . | . . . . . . . . Robots Hopped . | . . . . . . . . Cave-ins Triggered . | . . . . . . . . Exploration Rate (%) 60 | 7 93 57 89 99 72 59 11 Regions Visited 7 Branch Regions 3 Pre-discovered Areas 6 | . 2 1 1 . 2 . . Known Exits Taken 2 | . 1 . . . 1 . . Unknown Exits Taken 4 | 1 . 1 1 1 . . . Scrap Searched 3 | . . 1 . 2 . . . Spaces Dug 2 | . . . . . . 2 . Terrain Destroyed 109 | . 2 . 6 4 77 18 2 Melee . | . . . . . . . . Projectile 81 | . . . 2 4 55 18 2 AOE 28 | . 2 . 4 . 22 . . Terrain Rammed . | . . . . . . . . Walls Destroyed . | . . . . . . . . Machines Disabled . | . . . . . . . . Actions | -11 -10 -10 -10 -9 -8 -8 -7 --------- Run | Scr Mat Min Exi Min Mat Gar Fac Total 6620 | 146 667 302 1607 690 1489 1472 247 Wait 699 | . 44 10 11 91 482 60 1 Move 5247 | 121 540 286 1425 592 779 1272 232 Hop . | . . . . . . . . Pick Up 43 | 2 8 1 15 . 5 12 . Fast Attach 43 | 8 4 . 9 . 21 1 . Attach 12 | 1 1 1 5 . 2 2 . Detach 2 | . . . 1 . 1 . . Swap 13 | . . . 6 1 3 2 1 Drop 72 | 2 9 . 28 1 18 13 1 Fire 292 | 12 38 4 87 5 97 39 10 Melee 20 | . . . 5 . 5 8 2 Ram . | . . . . . . . . Kick . | . . . . . . . . Crush . | . . . . . . . . Escape Stasis 25 | . . . . . . 25 . Rewire 11 | . . . . . 11 . . Trap . | . . . . . . . . Miscellaneous 141 | . 23 . 15 . 65 38 . Route ------- -11/Scrapyard -10/Materials (discovered 4 exits: [*Mat x3] / *Min) -10/Mines (discovered 2 exits: [*Mat] / *Exi) -10/Exiles (discovered 2 exits: *Min x2) -9/Mines (discovered 2 exits: *Mat x2) -8/Materials -8/Garrison (discovered 2 exits: *Fac x2) -7/Factory History --------- Turn | Location | Event 2 | -11/Scrapyard | Upgraded with Propulsion slot (x1) 2 | -11/Scrapyard | Upgraded with Utility slot (x1) 2 | -11/Scrapyard | Upgraded with Weapon slot (x1) 5 | -11/Scrapyard | Discovered new exit (range 17) 236 | -11/Scrapyard | Entered Materials 327 | -10/Materials | Build established: Mutant 437 | -10/Materials | Discovered new exit (range 7) 507 | -10/Materials | Central database locked down 507 | -10/Materials | Identified exit to Mines 587 | -10/Materials | Discovered new exit (range 8) 698 | -10/Materials | Discovered new exit (range 16) 852 | -10/Materials | Reached level 2 861 | -10/Materials | Upgraded with Utility slot (x1) 959 | -10/Materials | Discovered new exit (range 8) 1300 | -10/Materials | Entered Mines 1314 | -10/Mines | Reached level 3 1321 | -10/Mines | Upgraded with Weapon slot (x1) 1333 | -10/Mines | Assembled infested the area 1338 | -10/Mines | Assisted by a Guerilla fighting off Assembled 1462 | -10/Mines | Learned location of Storage (-9) 1571 | -10/Mines | Deemed a non-threat by the Exiles lab entrance 1573 | -10/Mines | Discovered new exit (range 5) 1589 | -10/Mines | Discovered new exit (range 11) 1627 | -10/Mines | Build established: Gunner 1641 | -10/Mines | Learned Materials emergency access door positions 1780 | -10/Mines | Entered Exiles 1820 | -10/Exiles | Met 8R-AWN 1843 | -10/Exiles | Met EX-HEX 1904 | -10/Exiles | Met EX-DEC 1939 | -10/Exiles | Learned location of Zion (-7) 1976 | -10/Exiles | Met EX-BIN 1993 | -10/Exiles | Aligned with FarCom system 1995 | -10/Exiles | Given EX-Vault access code 2033 | -10/Exiles | Opened EX-Vault 2075 | -10/Exiles | Warned to stay clear of 0b10 Research branches 2360 | -10/Exiles | Build established: Mutant 2378 | -10/Exiles | Discovered new exit (range 16) 2664 | -10/Exiles | Found Deploy-a-Sentry 2667 | -10/Exiles | Found Deploy-a-Sentry 2669 | -10/Exiles | Found Deploy-a-Sentry 2789 | -10/Exiles | DAS Turret deployed 2792 | -10/Exiles | DAS Turret deployed 2796 | -10/Exiles | DAS Turret deployed 2913 | -10/Exiles | Found AWS/Thermal 3460 | -10/Exiles | Attacked by the Exiles 3467 | -10/Exiles | Allies destroyed EX-HEX 3523 | -10/Exiles | Core integrity fell below 50% 3573 | -10/Exiles | Core integrity fell below 20% 3588 | -10/Exiles | Destroyed 8R-AWN 3609 | -10/Exiles | Found 8R-AWN's Boregun 3614 | -10/Exiles | Found 8R-AWN's Boregun 3622 | -10/Exiles | Found 8R-AWN's Armor/EX 3626 | -10/Exiles | Found Exp. Targeting Computer 4033 | -10/Exiles | Destroyed EX-BIN 4055 | -10/Exiles | Found System Purifier 4058 | -10/Exiles | Destroyed EX-DEC 4193 | -10/Exiles | Discovered new exit (range 16) 4205 | -10/Exiles | Entered Mines 4254 | -9/Mines | Discovered new exit (range 12) 4257 | -9/Mines | Learned Materials stockpile data 4317 | -9/Mines | Build established: Scavenger-Gunner 4330 | -9/Mines | Discovered new exit (range 9) 4634 | -9/Mines | Found a hidden stash of uninstalled traps 4784 | -9/Mines | Entered Materials 4784 | -8/Materials | Accompanied by 2 allies 4785 | -8/Materials | Core integrity fell below 50% 4786 | -8/Materials | Reached level 4 4786 | -8/Materials | Upgraded with Utility slot (x1) 4789 | -8/Materials | Led the pair of lost Derelicts to an unsafe place 4812 | -8/Materials | Reached level 5 4999 | -8/Materials | Core integrity fell below 20% 5002 | -8/Materials | Reached level 6 5007 | -8/Materials | Upgraded with Utility slot (x1) 5332 | -8/Materials | Build established: Scavenger-Mutant 5345 | -8/Materials | Reached level 7 5722 | -8/Materials | Reached level 8 5722 | -8/Materials | Upgraded with Power slot (x1) 5722 | -8/Materials | Upgraded with Propulsion slot (x1) 6076 | -8/Materials | Repaired Broken Cmb. Antigrav System 6214 | -8/Materials | Repaired Broken System Purifier 6283 | -8/Materials | Repaired Adv. Weapon Cycler 6373 | -8/Materials | Repaired Lgt. Neutrino Core 6437 | -8/Materials | Central database locked down 6516 | -8/Materials | Identified exit to Garrison 6516 | -8/Materials | Entered Garrison 6518 | -8/Garrison | Reached level 9 6538 | -8/Garrison | Triggered checkpoint 6576 | -8/Garrison | Garrison Relay disabled 6591 | -8/Garrison | Build established: Scavenger-Scout 6620 | -8/Garrison | Triggered checkpoint 6804 | -8/Garrison | Discovered new exit (range 17) 6872 | -8/Garrison | Triggered checkpoint 6902 | -8/Garrison | Triggered checkpoint 6928 | -8/Garrison | Reached level 10 6955 | -8/Garrison | Upgraded with Utility slot (x1) 6970 | -8/Garrison | Garrison Relay disabled 7007 | -8/Garrison | Discovered new exit (range 16) 7023 | -8/Garrison | Identified exit to Factory 7028 | -8/Garrison | Installed Relay Interface Framework 7602 | -8/Garrison | Build established: Scavenger-Assassin 9329 | -8/Garrison | Entered Factory 9331 | -7/Factory | Reached level 11 9535 | -7/Factory | Self-destructed Last Messages --------------- 09427_ A-02 Transporter destroyed. 09431_ Acquired 24 matter. 09431_ U-05 Engineer builds a Door. 09432_ Dropped Imp. Ion Engine. 09433_ Acquired 10 matter. 09460_ T-07 Excavator is excavating. 09470_ HV Slug penetrates Matter Pump. 09470_ Matter Pump disabled. 09470_ HV Slug penetrates Matter Pump. 09470_ HV Slug penetrates K-01 Serf. 09470_ HV Slug penetrates Wall. 09472_ K-01 Serf collects debris. 09473_ HV Slug penetrates Matter Pump. 09473_ HV Slug penetrates A-02 Transporter. 09473_ A-02 Transporter destroyed. 09475_ K-01 Serf collects debris. 09478_ Acquired 24 matter. 09479_ K-01 Serf collects debris. 09482_ R-06 Scavenger collects Ion Engine. 09535_ Connecting with Scanalyzer... Map ----- +----------------------------------------------------+ | ###+######+#### #??##?????????????????? | | # ##?#?##?##????????????? | | # ######?#?##???????????? | | + """ ######???#????????????? | | # """ ##?#######??#?????????? | | # """ ####?#??###?#?????????? | | ## #######+##+# " " "" ##########???#????????? | | # ##[ # "R" "" ##?##?#?#?##??????????? | | # ## ! # """ ##?##??##??#??????????? | | # ## ######+##+########???###??#????????? | | # ## ###?## #?############?#?????????? | | ?# ## """ """ ###### # ? #?##?#?#???????? | | # ?# """ """ ###### # ? ####???????????? | | ?# ## """ """ ###### # ###?###?##?????? | | # ?+ ###### # #?##?##?##?????? | | ## ?####+########### # ! #######????????? | | ?# ?###??##?########u # ####?#?#??#????? | | ?# ##### ?####??#### + = #?#?#####??????? | | ?# ##### ########### # ##?????#???????? | | ## ##### #?######### ##+################?????????? | | #???####?t######?### + ##?##?###???#? ????? | | ##??#### ##?#?#?#?## # ##???###??#????????? | | ?#??#### #?###?##### # """ !! #?##??? ? #??????? | | ? ?? ? ?##?#?##### # """ !! ##?### ?""? ???????? | | ????? ? #??????##?# # """ !! ##?###??????# ?????? | | ???????? ?###?###### # "S@ ##?##? ?"" ???????? | | ??????? ? t ???? ? + "" ######? ? ????????? | | ?????#?#??#?? ??#?#? # "" ##?##? ?? ??# ? ???? | | ?????##??##? ??#??# # | #??#?????#?#??#????? | | ?????#?#??#+????#### ##########?#?#??#?#?????????? | | ???????? ? ?? ???##? ?? ? ????#?#???#?????? | | ???????? ??? ??u?r??## ? ? ?? ?? #?#?#????#????? | | ??????? ? ??"?"" ? + ???? ??????????????? | | ?????????? ?"??"? ??#? ? ?? ? ???#? ??????????? | | ???????? ??"?????? ?###??????? ????????#????????? | | ??????????? ????? ?#?#????? ??????? ???????? | | ???????????????" #??#?? ?? ? ? ?#?????????????? | | ??????????????"????####??? ????????? ???? ???????? | | ???????????????? ?###??? ? ???????#?????????????? | | ???????????????? ???##? ? ???? ???? ???????????? | | ????????????????? ?????? ????? ?????????????????? | | ????????????????????#???????????? ???????????????? | | ??????????????????#?????#???+?#???#??????????????? | | ????????????????????????#? ? ????????????????????? | | ?????????????????????????? ??????????????????????? | | ?????????????????????????????????????????????????? | | ?????????????????????????????????????????????????? | | ?????????????????????????????????????????????????? | | ?????????????????????????????????????????????????? | | ?????????????????????????????????????????????????? | +----------------------------------------------------+ Best States ------------- Heat Dissipation 57 Energy Generation 33 Energy Capacity 330 Matter Stores 400 Matter Capacity 400 Sight Range 17 Robot Scan Range 18 Terrain Scan Range 20 Terrain Scan Density 510 Armor Coverage 1000 Resistance: KI 20 Resistance: EX 90 Weapon Cycling 25 Evasion (%) 50 Targeting Accuracy 12 Core Analysis 10 Recoil Reduction 2 Offensive Hacking 15 Defensive Hacking 10 Item Schematics ----------------- Cmb. Antigrav System | -8/Materials | Scanalyzed System Purifier | -8/Materials | Scanalyzed Hacking Suite | -8/Materials | Hacked Robot Schematics ------------------ M-13 Machinist | -9/Mines | Hacked Fabricated ------------ Nothing Alien Tech Used ----------------- None Achievements -------------- None Challenges ------------ None RPGLIKE | -11 -10 -10 -10 -9 -8 -8 -7 --------- Run | Scr Mat Min Exi Min Mat Gar Fac Levels Raised 10 | . 1 1 . . 5 2 1 XP Earned 19423 | 3000 2415 750 350 850 7386 2766 1906 XP Spent 16415 | 2950 1550 800 480 . 7710 2545 380 Upgrades 49 | 11 2 1 8 . 20 5 2 Power Slot 1 | . . . . . 1 . . Propulsion Slot 2 | 1 . . . . 1 . . Utility Slot 5 | 1 1 . . . 2 1 . Weapon Slot 2 | 1 . 1 . . . . . Core Integrity 8 | . . . 8 . . . . Heat Dissipation 3 | 1 . . . . 2 . . Energy Generation 1 | . . . . . 1 . . Matter Storage 2 | . . . . . 1 1 . Mass Support 1 | 1 . . . . . . . Inventory Capacity 4 | 2 1 . . . 1 . . Sight Range 1 | 1 . . . . . . . Sensor Range 9 | . . . . . 9 . . Terrain Scan Density 5 | 1 . . . . . 2 2 Ranged Accuracy 1 | . . . . . . 1 . Hack Attack % 2 | 1 . . . . 1 . . Hack Defense % 2 | 1 . . . . 1 . . Protomatter Created 1122 | . 210 . 111 . 524 277 . Integrity Restored 3022 | . 428 . 333 . 1443 818 . Core 2338 | . 287 . 333 . 1443 275 . Parts 684 | . 141 . . . . 543 . Protomatter Decayed 110 | . 47 6 14 . 43 . . Game ------ Seed FrostSpikedPit Manual? 0 Play Time 01:01:45 Cumulative 414.0 hours Start 2020.12.15 @ 07:01:35 End 2020.12.15 @ 17:00:48 Sessions 7 Manual Loads 0 Difficulty Rogue Special Mode Winter2019/RPGLIKE Game No. 154 Rogue 151 Adventurer 3 Explorer 0 Win Type - Total 7 Types 4/1/0/1/0/1/0/0/0 Lore% 90 Gallery% 94 Achievement% 76 Wizard Run 0 Options --------- ASCII 0 Keyboard 0 Movement Numpad Keybinds 0 Fullscreen 1 Font 18/SmallcapsGlow Map View 76x50 Tactical HUD 1 Map Filters NONE Filters NONE Steam 1 RUN: f7a4eaa1-c6f0-4198-ba11-f9e723688df4